fUSD/lending_fUSD_20240529
["ID","MTS","AMOUNT","RATE_DAILY","PERIOD"]
[328165943,1716984632506,-155.0,9.972e-05,2]
[328165944,1716984632515,-250.05519525,9.972e-05,2]
[328165945,1716984632524,-306.53561288,9.972e-05,2]
[328165946,1716984632533,-155.24268003,9.972e-05,2]
[328165947,1716984632542,-2813.98016787,9.972e-05,2]
[328165948,1716984632552,-155.42578909,9.972e-05,2]
[328165949,1716984632561,-481.01276567,9.972e-05,2]
[328165950,1716984632571,-5565.87580621,9.972e-05,2]
[328165951,1716984632581,-249.12862903,9.972e-05,2]
[328165952,1716984632590,-155.44739539,9.972e-05,2]
[328165953,1716984632601,-248.58476661,9.972e-05,2]
[328165954,1716984632612,-529.6006328,9.972e-05,2]
[328165955,1716984632621,-179.20307345,9.972e-05,2]
[328165956,1716984632630,-276.26477197,9.972e-05,2]
[328165957,1716984632639,-155.37555704,9.972e-05,2]
[328165958,1716984632649,-155.20939504,9.972e-05,2]
[328165959,1716984632658,-342.71883576,9.972e-05,2]
[328165960,1716984632667,-155.0,9.972e-05,2]
[328165961,1716984632676,-99577.34406784,9.972e-05,2]
[328165962,1716984632688,-380.82981456,9.972e-05,2]
[328165963,1716984632700,-13334.91633467,9.972e-05,2]
[328165964,1716984632711,-4020.05519747,9.972e-05,2]
[328165965,1716984632722,-530.0,9.972e-05,2]
[328165966,1716984632734,-531.77659901,9.972e-05,2]
[328165967,1716984632745,-1458.0833515,9.972e-05,2]
[328165987,1716984632930,-83.3521333,9.972e-05,2]
[328165989,1716984632941,-517.0,9.972e-05,2]
[328165991,1716984632952,-1623.3980615,9.972e-05,2]
[328166004,1716984638550,-2601.0,9.972e-05,2]
[328166005,1716984638571,-8328.17912775,9.972e-05,2]
[328166006,1716984638582,-12599.52556417,9.972e-05,2]
[328166007,1716984638594,-700.0,9.972e-05,2]
[328166008,1716984638612,-698.26757,9.972e-05,2]
[328166009,1716984638625,-347.93,9.972e-05,2]
[328166078,1716984640893,-301.394501,9.972e-05,2]
[328166079,1716984640905,-13817.6793821,9.972e-05,2]
[328166080,1716984641699,-3662.65,9.972e-05,2]
[328166081,1716984641722,-112330.55045216,9.972e-05,2]
[328166083,1716984641734,-584.00738402,9.972e-05,2]
[328166094,1716984643521,-6185.0401233,9.972e-05,2]
[328166095,1716984643533,-612.90539042,9.972e-05,2]
[328166096,1716984643691,-397.77122,9.972e-05,2]
[328166097,1716984643751,-2247.56146344,9.972e-05,2]
[328166098,1716984643760,-313.69893412,9.973e-05,2]
[328166099,1716984643770,-1825.78938997,9.973e-05,2]
[328166100,1716984643788,-448.29543391,9.973e-05,2]
[328166101,1716984643799,-19746.92863178,9.974e-05,2]
[328166102,1716984643809,-410.2235979,0.0001,2]
[328166103,1716984643818,-824.23,0.00010959,2]
[328166104,1716984643828,-751.45358305,0.00011,2]
[328166105,1716984643837,-999.99,0.00011,2]
[328166106,1716984643847,-499.99,0.00011,2]
[328166107,1716984643857,-1313.77,0.00011404,2]
[328166110,1716984644051,-250.0,0.00011506,2]
[328166111,1716984644064,-250.0,0.00011788,2]
[328166112,1716984644074,-16126.36,0.00011802,2]
[328166113,1716984644083,-1000.0,0.00011822,2]
[328166114,1716984644092,-554.06,0.00012169,2]
[328166115,1716984644101,-10000.0,0.00012303,2]
[328166116,1716984644110,-412.17126416,0.00012444,2]
[328166118,1716984644119,-548.70135201,0.0001261,2]
[328166120,1716984644129,-548.70135201,0.0001261,2]
[328166122,1716984644138,-8969.282,0.00012651,2]
[328166124,1716984644146,-500.0,0.00012796,2]
[328166125,1716984644155,-500.0,0.00012797,2]
[328166126,1716984644165,-158.50845713,0.00012798,2]
[328166127,1716984644174,-212.27538932,0.000128,2]
[328166128,1716984644183,-166.39466723,0.000128,2]
[328166129,1716984644192,-3136.16658136,0.000128,2]
[328166130,1716984644201,-158.5084571,0.00012832,2]
[328166131,1716984644211,-799.40444032,0.00012834,2]
[328166132,1716984644220,-2000.0,0.00012835,2]
[328166133,1716984644229,-200.0,0.00012835,2]
[328166134,1716984644238,-2000.0,0.00012835,2]
[328166135,1716984644246,-200.0,0.00012835,2]
[328166136,1716984644255,-2176.45248,0.00012835,2]
[328166137,1716984644264,-151.0,0.00012835,2]
[328166138,1716984644273,-157.635393,0.00012835,2]
[328166139,1716984644282,-177.007366,0.00012835,2]
[328166140,1716984644291,-151.0,0.00012835,2]
[328166141,1716984644300,-271.514848,0.00012835,2]
[328166142,1716984644313,-1000.0,0.00012835,2]
[328166143,1716984644322,-1000.0,0.00012835,2]
[328166144,1716984644334,-1000.0,0.00012835,2]
[328166145,1716984644343,-1000.0,0.00012835,2]
[328166146,1716984644354,-1000.0,0.00012835,2]
[328166147,1716984644363,-1000.0,0.00012835,2]
[328166148,1716984644372,-1000.0,0.00012835,2]
[328166149,1716984644383,-1000.0,0.00012835,2]
[328166150,1716984644395,-1000.0,0.00012835,2]
[328166151,1716984644405,-1000.0,0.00012835,2]
[328166152,1716984644414,-428.4121,0.00012835,2]
[328166153,1716984644423,-162.35907,0.00012835,2]
[328166154,1716984644434,-151.0,0.00012835,2]
[328166155,1716984644443,-158.5084571,0.00012866,2]
[328166156,1716984644453,-1636.93957684,0.00012886,2]
[328166157,1716984644462,-517.19519102,0.0001289,2]
[328166158,1716984644471,-151.0,0.0001289,2]
[328166159,1716984644480,-4293.34952503,0.00012898,2]
[328166160,1716984644490,-168.24960933,0.00012898,2]
[328166161,1716984644499,-155.21567507,0.00012898,2]
[328166162,1716984644509,-241.29355941,0.00012898,2]
[328166163,1716984644518,-238.26034551,0.00012898,2]
[328166164,1716984644527,-1226.71869147,0.00012898,2]
[328166165,1716984644536,-155.69724172,0.00012898,2]
[328166166,1716984644545,-482.72660575,0.00012898,2]
[328166167,1716984644554,-177.37823608,0.00012898,2]
[328166168,1716984644563,-326.8758113,0.00012898,2]
[328166169,1716984644573,-263.66612505,0.00012898,2]
[328166170,1716984644583,-300.78459911,0.00012898,2]
[328166171,1716984644592,-206.36727858,0.00012898,2]
[328166172,1716984644601,-167.19331294,0.00012898,2]
[328166173,1716984644610,-156.01882306,0.00012898,2]
[328166174,1716984644620,-155.40188889,0.00012898,2]
[328166175,1716984644630,-1064.02542885,0.00012898,2]
[328166176,1716984644639,-624.30333556,0.00012898,2]
[328166177,1716984644649,-10950.42899306,0.00012898,2]
[328166178,1716984644658,-151.0,0.00012898,2]
[328166179,1716984644667,-165.661515,0.00012898,2]
[328166180,1716984644677,-151.0,0.00012898,2]
[328166181,1716984644686,-151.0,0.00012898,2]
[328166182,1716984644695,-151.0,0.00012898,2]
[328166183,1716984644704,-158.949377,0.00012898,2]
[328166184,1716984644713,-165.460349,0.00012898,2]
[328166185,1716984644722,-151.0,0.00012898,2]
[328166186,1716984644732,-151.0,0.00012898,2]
[328166187,1716984644741,-157.248261,0.00012898,2]
[328166188,1716984644751,-286.363145,0.00012898,2]
[328166189,1716984644760,-166.707839,0.00012898,2]
[328166190,1716984644769,-166.707839,0.00012898,2]
[328166191,1716984644778,-151.0,0.00012898,2]
[328166192,1716984644789,-151.0,0.00012898,2]
[328166193,1716984644799,-449.27964,0.00012898,2]
[328166194,1716984644808,-449.27964,0.00012898,2]
[328166195,1716984644819,-169.539845,0.00012898,2]
[328166196,1716984644827,-156.458066,0.00012898,2]
[328166197,1716984644836,-154.52811473,0.00012898,2]
[328166198,1716984644846,-154.52811473,0.00012898,2]
[328166199,1716984644855,-154.52811473,0.00012898,2]
[328166200,1716984644864,-154.52811473,0.00012898,2]
[328166201,1716984644873,-154.52811473,0.00012898,2]
[328166202,1716984644882,-154.52811473,0.00012898,2]
[328166203,1716984644892,-154.52811473,0.00012898,2]
[328166204,1716984644901,-154.52811473,0.00012898,2]
[328166205,1716984644910,-154.52811473,0.00012898,2]
[328166206,1716984644920,-153.01185,0.00012898,2]
[328166207,1716984644930,-151.0,0.00012898,2]
[328166208,1716984644939,-151.0,0.00012898,2]
[328166209,1716984644948,-151.0,0.00012898,2]
[328166210,1716984644957,-199.269397,0.00012898,2]
[328166211,1716984644966,-151.0,0.00012898,2]
[328166212,1716984644975,-10000.0,0.00012898,2]
[328166213,1716984644984,-10000.0,0.00012898,2]
[328166214,1716984644993,-10000.0,0.00012898,2]
[328166215,1716984645003,-10000.0,0.00012898,2]
[328166216,1716984645012,-10000.0,0.00012898,2]
[328166217,1716984645022,-6319.78132889,0.00012898,2]
[328166218,1716984645036,-3680.21867111,0.00012898,2]
[328166219,1716984645045,-553.568811,0.00012898,2]
[328166220,1716984645054,-553.568811,0.00012898,2]
[328166221,1716984645064,-151.0,0.00012898,2]
[328166222,1716984645073,-151.0,0.00012898,2]
[328166223,1716984645082,-151.0,0.00012898,2]
[328166224,1716984645092,-151.0,0.00012898,2]
[328166225,1716984645101,-151.0,0.00012899,2]
[328166226,1716984645110,-270.587425,0.00012899,2]
[328166227,1716984645119,-449.27964,0.00012899,2]
[328166228,1716984645129,-449.27964,0.00012899,2]
[328166229,1716984645138,-151.0,0.00012899,2]
[328166230,1716984645147,-205.583143,0.00012899,2]
[328166231,1716984645156,-553.568811,0.00012899,2]
[328166232,1716984645166,-553.568811,0.00012899,2]
[328166233,1716984645176,-155.48332145,0.00012899,2]
[328166234,1716984645185,-155.48332142,0.00012899,2]
[328166235,1716984645194,-155.48332142,0.00012899,2]
[328166236,1716984645203,-155.48332142,0.00012899,2]
[328166237,1716984645213,-155.48332142,0.00012899,2]
[328166238,1716984645222,-155.48332142,0.00012899,2]
[328166239,1716984645231,-155.48332142,0.00012899,2]
[328166240,1716984645240,-155.48332142,0.00012899,2]
[328166241,1716984645249,-577259.63913644,0.000129,2]
[328166242,1716984645258,-1000.0,0.000129,2]
[328166243,1716984645267,-151.0,0.000129,2]
[328166244,1716984645277,-151.0,0.000129,2]
[328166245,1716984645286,-153.244089,0.000129,2]
[328166246,1716984645295,-177.398713,0.000129,2]
[328166247,1716984645305,-164.047545,0.000129,2]
[328166248,1716984645318,-151.0,0.000129,2]
[328166249,1716984645327,-151.0,0.000129,2]
[328166250,1716984645336,-151.0,0.000129,2]
[328166251,1716984645345,-151.0,0.000129,2]
[328166252,1716984645355,-151.0,0.000129,2]
[328166253,1716984645365,-151.0,0.000129,2]
[328166254,1716984645374,-161.775095,0.000129,2]
[328166255,1716984645383,-151.0,0.000129,2]
[328166256,1716984645395,-177.559722,0.000129,2]
[328166257,1716984645404,-166.707839,0.000129,2]
[328166258,1716984645413,-166.707839,0.000129,2]
[328166259,1716984645422,-166.707839,0.000129,2]
[328166260,1716984645432,-166.707839,0.000129,2]
[328166261,1716984645441,-166.707839,0.000129,2]
[328166262,1716984645450,-166.707839,0.000129,2]
[328166263,1716984645459,-151.0,0.000129,2]
[328166264,1716984645468,-151.0,0.000129,2]
[328166265,1716984645477,-151.0,0.000129,2]
[328166266,1716984645487,-449.27964,0.000129,2]
[328166267,1716984645496,-449.27964,0.000129,2]
[328166268,1716984645506,-449.27964,0.000129,2]
[328166269,1716984645515,-449.27964,0.000129,2]
[328166270,1716984645524,-449.27964,0.000129,2]
[328166271,1716984645533,-449.27964,0.000129,2]
[328166272,1716984645542,-154.52811473,0.000129,2]
[328166273,1716984645551,-151.0,0.000129,2]
[328166274,1716984645560,-151.0,0.000129,2]
[328166275,1716984645570,-151.0,0.000129,2]
[328166276,1716984645579,-10000.0,0.000129,2]
[328166277,1716984645589,-10000.0,0.000129,2]
[328166278,1716984645598,-10000.0,0.000129,2]
[328166279,1716984645607,-10000.0,0.000129,2]
[328166280,1716984645616,-10000.0,0.000129,2]
[328166281,1716984645626,-10000.0,0.000129,2]
[328166282,1716984645635,-10000.0,0.000129,2]
[328166283,1716984645644,-10000.0,0.000129,2]
[328166284,1716984645655,-10000.0,0.000129,2]
[328166285,1716984645664,-553.568811,0.000129,2]
[328166286,1716984645673,-553.568811,0.000129,2]
[328166287,1716984645682,-553.568811,0.000129,2]
[328166288,1716984645691,-553.568811,0.000129,2]
[328166289,1716984645701,-553.568811,0.000129,2]
[328166290,1716984645711,-553.568811,0.000129,2]
[328166291,1716984645720,-158.5084571,0.000129,2]
[328166292,1716984645730,-151.0,0.000129,2]
[328166293,1716984645739,-151.0,0.000129,2]
[328166294,1716984645748,-1459.23016828,0.000129,2]
[328166295,1716984645757,-428.32340537,0.000129,2]
[328166296,1716984645766,-151.0,0.000129,2]
[328166297,1716984645775,-151.0,0.000129,2]
[328166298,1716984645784,-1229.99848786,0.000129,2]
[328166299,1716984645793,-221.56904741,0.000129,2]
[328166300,1716984645802,-155.48332142,0.000129,2]
[328166301,1716984645811,-150.347,0.0001294,2]
[328166302,1716984645820,-151.0,0.00012943,2]
[328166303,1716984645829,-150.0,0.0001295,2]
[328166304,1716984645838,-198.979,0.0001295,2]
[328166305,1716984645847,-166.707839,0.00012953,2]
[328166306,1716984645856,-166.707839,0.00012953,2]
[328166307,1716984645866,-156.331589,0.00012953,2]
[328166308,1716984645876,-449.27964,0.00012953,2]
[328166309,1716984645885,-449.27964,0.00012953,2]
[328166310,1716984645894,-151.0,0.00012953,2]
[328166311,1716984645904,-151.0,0.00012953,2]
[328166312,1716984645913,-10000.0,0.00012953,2]
[328166313,1716984645922,-10000.0,0.00012953,2]
[328166314,1716984645930,-10000.0,0.00012953,2]
[328166315,1716984645939,-10000.0,0.00012953,2]
[328166316,1716984645948,-10000.0,0.00012953,2]
[328166317,1716984645957,-10029.67,0.00012953,2]
[328166318,1716984645966,-553.568811,0.00012953,2]
[328166319,1716984645975,-553.568811,0.00012953,2]
[328166320,1716984645984,-553.568811,0.00012953,2]
[328166321,1716984645994,-553.568811,0.00012953,2]
[328166322,1716984646003,-151.0,0.00012953,2]
[328166323,1716984646012,-151.0,0.00012953,2]
[328166324,1716984646021,-151.0,0.00012953,2]
[328166325,1716984646030,-151.0,0.00012953,2]
[328166326,1716984646039,-150.799,0.00012954,2]
[328166327,1716984646048,-150.134,0.00012954,2]
[328166328,1716984646057,-250.0,0.00012954,2]
[328166329,1716984646066,-329.269,0.00012954,2]
[328166330,1716984646075,-440.0,0.00012954,2]
[328166331,1716984646085,-1224.0,0.00012954,2]
[328166332,1716984646094,-1646.0,0.00012954,2]
[328166333,1716984646103,-614.0,0.00012954,2]
[328166334,1716984646111,-2000.0,0.00012963,2]
[328166335,1716984646120,-200.0,0.00012963,2]
[328166336,1716984646130,-2000.0,0.00012963,2]
[328166337,1716984646140,-200.0,0.00012963,2]
[328166338,1716984646149,-449.27964,0.00012963,2]
[328166339,1716984646158,-449.27964,0.00012963,2]
[328166340,1716984646167,-42278.53054681,0.0001298,2]
[328166341,1716984646176,-151.0,0.0001298,2]
[328166342,1716984646185,-151.0,0.0001298,2]
[328166343,1716984646195,-151.0,0.0001298,2]
[328166344,1716984646204,-151.0,0.0001298,2]
[328166345,1716984646213,-213.363141,0.0001298,2]
[328166346,1716984646223,-166.707839,0.0001298,2]
[328166347,1716984646232,-166.707839,0.0001298,2]
[328166348,1716984646241,-166.707839,0.0001298,2]
[328166349,1716984646249,-166.707839,0.0001298,2]
[328166350,1716984646258,-449.27964,0.0001298,2]
[328166351,1716984646267,-449.27964,0.0001298,2]
[328166352,1716984646276,-449.27964,0.0001298,2]
[328166353,1716984646285,-449.27964,0.0001298,2]
[328166354,1716984646294,-151.0,0.0001298,2]
[328166355,1716984646304,-151.0,0.0001298,2]
[328166356,1716984646317,-10000.0,0.0001298,2]
[328166357,1716984646326,-10000.0,0.0001298,2]
[328166359,1716984646335,-10000.0,0.0001298,2]
[328166361,1716984646344,-10000.0,0.0001298,2]
[328166363,1716984646355,-553.568811,0.0001298,2]
[328166365,1716984646365,-553.568811,0.0001298,2]
[328166367,1716984646374,-553.568811,0.0001298,2]
[328166369,1716984646385,-553.568811,0.0001298,2]
[328166371,1716984646394,-151.0,0.0001298,2]
[328166373,1716984646403,-151.0,0.0001298,2]
[328166375,1716984646413,-263.86499,0.0001298,2]
[328166376,1716984646422,-151.0,0.00012986,2]
[328166377,1716984646431,-151.0,0.00012986,2]
[328166378,1716984646440,-171.150573,0.00012986,2]
[328166379,1716984646449,-151.0,0.00012986,2]
[328166380,1716984646458,-151.0,0.00012986,2]
[328166381,1716984646467,-151.0,0.00012986,2]
[328166382,1716984646476,-151.0,0.00012986,2]
[328166383,1716984646485,-166.707839,0.00012986,2]
[328166384,1716984646495,-166.707839,0.00012986,2]
[328166385,1716984646504,-166.707839,0.00012986,2]
[328166386,1716984646513,-166.707839,0.00012986,2]
[328166387,1716984646522,-166.707839,0.00012986,2]
[328166388,1716984646531,-166.70784,0.00012986,2]
[328166389,1716984646540,-449.27964,0.00012986,2]
[328166390,1716984646550,-449.27964,0.00012986,2]
[328166391,1716984646560,-151.0,0.00012986,2]
[328166392,1716984646570,-10000.0,0.00012986,2]
[328166393,1716984646579,-10000.0,0.00012986,2]
[328166394,1716984646588,-553.568811,0.00012986,2]
[328166395,1716984646597,-553.568805,0.00012986,2]
[328166396,1716984646607,-151.0,0.00012986,2]
[328166397,1716984646616,-99957.0,0.00012986,2]
[328166398,1716984646626,-517.19519102,0.0001299,2]
[328166399,1716984646635,-517.19519102,0.0001299,2]
[328166400,1716984646644,-151.0,0.0001299,2]
[328166401,1716984646654,-151.0,0.0001299,2]
[328166402,1716984646663,-151.0,0.0001299,2]
[328166403,1716984646673,-151.0,0.0001299,2]
[328166404,1716984646681,-151.0,0.0001299,2]
[328166405,1716984646690,-151.0,0.0001299,2]
[328166406,1716984646699,-151.0,0.0001299,2]
[328166407,1716984646707,-151.0,0.0001299,2]
[328166408,1716984646715,-151.0,0.0001299,2]
[328166409,1716984646723,-151.0,0.0001299,2]
[328166410,1716984646731,-151.0,0.0001299,2]
[328166411,1716984646739,-151.0,0.0001299,2]
[328166412,1716984646748,-151.0,0.0001299,2]
[328166413,1716984646757,-151.0,0.0001299,2]
[328166414,1716984646765,-151.0,0.0001299,2]
[328166415,1716984646774,-635225.98141011,0.00013,2]
[328166416,1716984646861,-978.05243762,9.971e-05,2]
[328166417,1716984646869,-1022.90774952,0.00012303,2]
[328166418,1716984646893,-100.00252383,0.00012303,2]
[328166528,1716985456081,-178.87,9.584e-05,2]
[328166529,1716985456104,-3821.13,9.791e-05,2]
[328166530,1716985460739,-524.52173473,9.791e-05,2]
[328166604,1716985833235,-247.800197,9.972e-05,2]
[328166605,1716985833245,-200.81677809,9.972e-05,2]
[328166606,1716985833255,-154.15186399,0.00010133,2]
[328166607,1716985833264,-531.38,0.00010233,2]
[328166608,1716985833274,-154.15186399,0.00011517,2]
[328166609,1716985833283,-250.0,0.00011891,2]
[328166610,1716985833293,-250.0,0.00011917,2]
[328166611,1716985833302,-344.02628241,0.00011943,2]
[328166612,1716985833314,-943.68371759,0.00011943,2]
[328166613,1716985833324,-200.0,0.0001198,2]
[328166614,1716985833333,-158.91,0.00012069,2]
[328166615,1716985833343,-1000.0,0.00012131,2]
[328166616,1716985833352,-410.2235979,0.00012303,2]
[328166617,1716985833361,-150.0,0.00012304,2]
[328166618,1716985833370,-2992.71170047,0.00012305,2]
[328166619,1716985833382,-2881.44846546,0.00012305,2]
[328166620,1716985833391,-856.61416531,0.00012305,2]
[328166621,1716985833402,-2168.70246213,0.00012305,2]
[328166622,1716985833455,-267.23393513,0.00012305,2]
[328166768,1716986670325,547.9,9.772e-05,2]
[328166832,1716987032046,-528.592,9.999e-05,2]
[328166838,1716987032118,-561.51132701,9.999e-05,2]
[328166839,1716987032130,-309.74168373,9.999e-05,2]
[328166840,1716987032141,-4002.09852219,0.0001,2]
[328166841,1716987032154,-154.15186399,0.0001,2]
[328166842,1716987032164,-250.0,0.00011608,2]
[328166843,1716987032174,-250.0,0.00011611,2]
[328166844,1716987032185,-1190.49,0.00011637,2]
[328166845,1716987032195,-23900.0,0.00011637,2]
[328166846,1716987032204,-258.61395977,0.00011697,2]
[328166847,1716987032384,-1000.0,0.00011734,2]
[328166848,1716987032406,-150.0,0.00011761,2]
[328166849,1716987032416,-416.3,0.00012,2]
[328166850,1716987032426,-412.17126416,0.00012011,2]
[328166851,1716987032437,-547.9,0.00012035,2]
[328166852,1716987032447,-171.21,0.00012038,2]
[328166853,1716987032456,-870.87,0.000121,2]
[328166855,1716987032466,-1592.86,0.000121,2]
[328166857,1716987032475,-168.15,0.00012302,2]
[328166859,1716987032485,-410.2235979,0.00012305,2]
[328166860,1716987032494,-1883.78869,0.00012305,2]
[328166861,1716987032504,-6707.44943743,0.00012305,2]
[328166862,1716987032513,-416.3,0.00012493,2]
[328166863,1716987032522,-871.25,0.00012493,2]
[328166864,1716987032532,-862.37,0.00012493,2]
[328166865,1716987032542,-871.25,0.00012493,2]
[328166866,1716987032551,-414.72,0.00012493,2]
[328166867,1716987032561,-871.25,0.00012493,2]
[328166868,1716987032570,-871.0,0.00012884,2]
[328166869,1716987032580,-440.0,0.00012884,2]
[328166870,1716987032590,-614.0,0.00012884,2]
[328166871,1716987032599,-1224.0,0.00012884,2]
[328166872,1716987032609,-48347.7387,0.00012889,2]
[328166873,1716987032618,-3738.0626,0.00012889,2]
[328166874,1716987032628,-1953.0,0.00012891,2]
[328166875,1716987032637,-1206.3982,0.00012891,2]
[328166876,1716987032647,-2500.0,0.00012891,2]
[328166877,1716987032656,-500.0,0.00012896,2]
[328166878,1716987032666,-364.93128834,0.00012898,2]
[328166879,1716987032675,-250.80273951,0.00012898,2]
[328166880,1716987032684,-17781.9431,0.00012899,2]
[328166881,1716987032695,-150.22983098,0.00012899,2]
[328166882,1716987032704,-327.68447059,0.00012899,2]
[328166883,1716987032713,-179.43670754,0.000129,2]
[328166884,1716987032722,-156.48510114,0.000129,2]
[328166885,1716987032731,-168.15,0.00012943,2]
[328166886,1716987032741,-1961.17912488,0.00012985,2]
[328166887,1716987032750,-188.11098372,0.00012989,2]
[328166888,1716987032759,-3893.68813406,0.00012989,2]
[328166889,1716987032775,-1050.97484274,0.00012989,2]
[328166890,1716987032785,-5275.8403217,0.00012989,2]
[328166891,1716987032794,-851.7378847,0.00012989,2]
[328166892,1716987032803,-16.53582314,0.00012989,2]
[328166893,1716987032818,-522.55327531,0.00012989,2]
[328166894,1716987032829,-1865.69249295,0.00012989,2]
[328166895,1716987032840,-2253.76645182,0.00012989,2]
[328166896,1716987032851,-12328.97338316,0.00012989,2]
[328166897,1716987032866,-1047.58741957,0.00012989,2]
[328166898,1716987032878,-655.60712406,0.00012989,2]
[328166899,1716987032889,-670.28116184,0.00012989,2]
[328166900,1716987032900,-1114.24720997,0.00012989,2]
[328166901,1716987032917,-6453.90902838,0.00012989,2]
[328166902,1716987032927,-4858.7675495,0.00012991,2]
[328166903,1716987032936,-4772.8721223,0.00012991,2]
[328166904,1716987032947,-4686.976695,0.00012991,2]
[328166905,1716987032956,-4601.0812677,0.00012991,2]
[328166906,1716987032965,-4515.1858405,0.00012991,2]
[328166907,1716987032974,-5184.1918998,0.00012991,2]
[328166908,1716987032984,-5092.5434779,0.00012991,2]
[328166909,1716987032993,-5000.895056,0.00012991,2]
[328166910,1716987033003,-4909.2466341,0.00012991,2]
[328166911,1716987033013,-4817.5982122,0.00012991,2]
[328166912,1716987033022,-836.9420554,0.00012991,2]
[328166913,1716987033031,-822.1462261,0.00012991,2]
[328166914,1716987033041,-807.3503967,0.00012991,2]
[328166915,1716987033051,-792.5545674,0.00012991,2]
[328166917,1716987033060,-777.7587381,0.00012991,2]
[328166918,1716987033069,-26461.3578611,0.00012991,2]
[328166919,1716987033078,-25993.5623521,0.00012991,2]
[328166920,1716987033087,-25525.766843,0.00012991,2]
[328166921,1716987033097,-25057.9713339,0.00012991,2]
[328166922,1716987033107,-24590.1758248,0.00012991,2]
[328166923,1716987033121,-1531.67403765,0.00012998,2]
[328166924,1716987033130,-533.0,0.00012999,2]
[328166925,1716987033140,-505.2914102,0.00012999,2]
[328166926,1716987033150,-153211.88678116,0.00012999,2]
[328166936,1716987038015,-7500.0,0.00012899,2]
[328166937,1716987038025,-1962.56401,0.00012999,2]
[328166938,1716987038085,-251.0434493,0.00012999,2]
[328167119,1716987043468,-2534.3595,0.00012889,2]
[328167120,1716987043478,-388917.64050121,0.00012999,2]
[328167387,1716987046098,-310200.82216409,0.00012999,2]
[328167390,1716987046110,-6922.51004899,0.00012999,2]
[328167392,1716987046126,-150350.18874374,0.00012999,2]
[328167394,1716987046135,-193.50479953,0.00012999,2]
[328167396,1716987046145,-4918.25734294,0.00012999,2]
[328167398,1716987046156,-16244.34211379,0.00013,2]
[328167400,1716987046168,-169420.7875665,0.00013,2]
[328167413,1716987046281,-5618.44935928,0.00013,2]
[328167464,1716987082125,300.0,0.000122,4]
[328167465,1716987084256,600.0,0.000123,4]
[328167466,1716987086518,900.0,0.000124,4]
[328167467,1716987088620,1300.0,0.000125,4]
[328167468,1716987090758,1600.0,0.000126,4]
[328167469,1716987092860,300.0,0.000127,4]
[328167470,1716987094957,300.0,0.000128,4]
[328167471,1716987097061,300.0,0.000129,4]
[328167487,1716987274449,2550.07792439,9.675e-05,2]
[328167488,1716987345702,377.50034088,9.675e-05,2]
[328167489,1716987345724,4000.0,9.675e-05,2]
[328167490,1716987345746,4000.0,9.675e-05,2]
[328167491,1716987345768,4000.0,9.675e-05,2]
[328167492,1716987345790,4000.0,9.675e-05,2]
[328167493,1716987345811,4000.0,9.675e-05,2]
[328167494,1716987345832,4000.0,9.675e-05,2]
[328167495,1716987345852,262.35302961,9.675e-05,2]
[328167496,1716987353572,3737.64697039,9.675e-05,2]
[328167497,1716987353594,4000.0,9.675e-05,2]
[328167510,1716987745866,-3587.88641695,9.674e-05,2]
[328167511,1716987799229,412.11358305,9.673e-05,2]
[328167512,1716987799253,68.96022263,9.673e-05,2]
[328167513,1716987800359,533.61160406,8.609e-05,2]
[328167514,1716987800945,538.21999742,9.673e-05,2]
[328167515,1716987802693,155.0,9.673e-05,2]
[328167516,1716987823234,337.47381431,9.673e-05,2]
[328167517,1716987838742,2366.73436158,9.673e-05,2]
[328167518,1716987838763,4000.0,9.673e-05,2]
[328167519,1716987838784,4000.0,9.673e-05,2]